fUST/lending_fUST_20250305
["ID","MTS","AMOUNT","RATE_DAILY","PERIOD"]
[355409067,1741113039419,-500.0,0.00043835,120]
[355409068,1741113039428,-500.0,0.00043835,120]
[355409069,1741113039438,-500.0,0.00043835,120]
[355409070,1741113039448,-500.0,0.00043835,120]
[355409071,1741113039457,-500.0,0.00043835,120]
[355409072,1741113039467,-500.0,0.00043835,120]
[355409073,1741113039477,-504.83650581,0.00043835,120]
[355409074,1741113039486,-500.0,0.00043835,120]
[355409075,1741113039498,-501.94965314,0.00043835,120]
[355409076,1741113039507,-500.0,0.00043835,120]
[355409077,1741113039516,-170.31624211,0.00043835,120]
[355409078,1741113039526,-500.0,0.00043835,120]
[355409079,1741113039537,-504.45833181,0.00043835,120]
[355409081,1741113039547,-500.0,0.00043835,120]
[355409082,1741113039557,-500.0,0.00043835,120]
[355409084,1741113039568,-500.0,0.00043835,120]
[355409086,1741113039580,-500.0,0.00043835,120]
[355409087,1741113039591,-500.0,0.00043835,120]
[355409088,1741113039602,-500.0,0.00043835,120]
[355409089,1741113039611,-500.0,0.00043835,120]
[355409090,1741113039621,-500.0,0.00043835,120]
[355409091,1741113039630,-500.0,0.00043835,120]
[355409093,1741113039639,-527.68,0.00043835,120]
[355409094,1741113039649,-500.0,0.00043835,120]
[355409096,1741113039659,-500.0,0.00043835,120]
[355409097,1741113039669,-500.0,0.00043835,120]
[355409098,1741113039678,-500.0,0.00043835,120]
[355409099,1741113039688,-500.0,0.00043835,120]
[355409100,1741113039697,-500.0,0.00043835,120]
[355409102,1741113039707,-500.0,0.00043835,120]
[355409103,1741113039716,-592.94723038,0.00043835,120]
[355409104,1741113039726,-500.0,0.00043835,120]
[355409105,1741113039735,-500.0,0.00043835,120]
[355409106,1741113039744,-500.0,0.00043835,120]
[355409107,1741113039753,-500.0,0.00043835,120]
[355409108,1741113039763,-500.0,0.00043835,120]
[355409110,1741113039773,-500.0,0.00043835,120]
[355409112,1741113039782,-500.0,0.00043835,120]
[355409113,1741113039792,-500.0,0.00043835,120]
[355409114,1741113039801,-500.0,0.00043835,120]
[355409115,1741113039811,-500.0,0.00043835,120]
[355409116,1741113039821,-500.0,0.00043835,120]
[355409117,1741113039830,-500.0,0.00043835,120]
[355409119,1741113039840,-500.0,0.00043835,120]
[355409120,1741113039850,-488.21487196,0.00043835,120]
[355409121,1741113039860,-500.0,0.00043835,120]
[355409122,1741113039869,-500.0,0.00043835,120]
[355409123,1741113039879,-334.05508118,0.00043835,120]
[355409124,1741113039889,-500.0,0.00043835,120]
[355409125,1741113039898,-500.0,0.00043835,120]
[355409126,1741113039908,-500.0,0.00043835,120]
[355409127,1741113039918,-500.0,0.00043835,120]
[355409128,1741113039927,-598.83417877,0.00043835,120]
[355409129,1741113039937,-500.0,0.00043835,120]
[355409130,1741113039946,-500.0,0.00043835,120]
[355409131,1741113039956,-500.0,0.00043835,120]
[355409132,1741113039965,-210.35762485,0.00043835,120]
[355409133,1741113039974,-500.0,0.00043835,120]
[355409134,1741113039984,-530.05826055,0.00043835,120]
[355409135,1741113039994,-500.0,0.00043835,120]
[355409136,1741113040003,-500.0,0.00043835,120]
[355409137,1741113040013,-500.0,0.00043835,120]
[355409138,1741113040023,-500.0,0.00043835,120]
[355409139,1741113040032,-500.0,0.00043835,120]
[355409140,1741113040041,-500.0,0.00043835,120]
[355409141,1741113040051,-500.0,0.00043835,120]
[355409142,1741113040061,-853.85,0.00043835,120]
[355409143,1741113040071,-2331.66,0.00043835,120]
[355409144,1741113040080,-500.0,0.00043835,120]
[355409145,1741113040090,-500.0,0.00043835,120]
[355409146,1741113040099,-500.0,0.00043835,120]
[355409147,1741113040108,-500.0,0.00043835,120]
[355409148,1741113040118,-500.0,0.00043835,120]
[355409149,1741113040128,-500.0,0.00043835,120]
[355409150,1741113040137,-500.0,0.00043835,120]
[355409151,1741113040146,-503.01851232,0.00043835,120]
[355409152,1741113040156,-514.26244761,0.00043835,120]
[355409153,1741113040165,-500.0,0.00043835,120]
[355409154,1741113040174,-500.0,0.00043835,120]
[355409155,1741113040184,-507.17336182,0.00043835,120]
[355409156,1741113040194,-500.0,0.00043835,120]
[355409157,1741113040203,-500.0,0.00043835,120]
[355409158,1741113040213,-500.0,0.00043835,120]
[355409159,1741113040222,-1673.68,0.00043835,6]
[355409160,1741113040232,-500.0,0.00043835,120]
[355409161,1741113040242,-500.0,0.00043835,120]
[355409162,1741113040251,-500.0,0.00043835,120]
[355409163,1741113040261,-500.0,0.00043835,120]
[355409164,1741113040393,-500.0,0.00043835,120]
[355409165,1741113040408,-500.0,0.00043835,120]
[355409166,1741113040418,-500.0,0.00043835,120]
[355409167,1741113040427,-162.18,0.00043835,120]
[355409168,1741113040437,-500.0,0.00043835,120]
[355409169,1741113040446,-500.0,0.00043835,120]
[355409170,1741113040456,-500.0,0.00043835,120]
[355409171,1741113040465,-500.0,0.00043835,120]
[355409172,1741113040475,-500.0,0.00043835,120]
[355409173,1741113040485,-500.0,0.00043835,120]
[355409174,1741113040497,-500.0,0.00043835,120]
[355409175,1741113040507,-899.93,0.00043835,120]
[355409176,1741113040516,-500.0,0.00043835,120]
[355409177,1741113040526,-500.0,0.00043835,120]
[355409178,1741113040536,-500.0,0.00043835,120]
[355409179,1741113040546,-500.0,0.00043835,120]
[355409180,1741113040556,-500.0,0.00043835,120]
[355409181,1741113040568,-955.17,0.00043835,120]
[355409182,1741113040579,-999.54,0.00043835,120]
[355409183,1741113040589,-500.0,0.00043835,120]
[355409184,1741113040599,-500.0,0.00043835,120]
[355409185,1741113040608,-500.0,0.00043835,120]
[355409186,1741113040618,-501.0,0.00043835,120]
[355409187,1741113040628,-500.0,0.00043835,120]
[355409188,1741113040638,-500.0,0.00043835,120]
[355409189,1741113040648,-500.0,0.00043835,120]
[355409190,1741113040657,-500.0,0.00043835,120]
[355409191,1741113040667,-500.0,0.00043835,120]
[355409192,1741113040677,-500.0,0.00043835,120]
[355409193,1741113040686,-500.0,0.00043835,120]
[355409194,1741113040696,-500.0,0.00043835,120]
[355409195,1741113040705,-500.0,0.00043835,120]
[355409196,1741113040715,-639.30155562,0.00043835,120]
[355409197,1741113040726,-500.0,0.00043835,120]
[355409198,1741113040736,-500.0,0.00043835,120]
[355409199,1741113040746,-500.0,0.00043835,120]
[355409200,1741113040756,-500.0,0.00043835,120]
[355409201,1741113040766,-500.0,0.00043835,120]
[355409202,1741113040775,-500.0,0.00043835,120]
[355409203,1741113040785,-500.0,0.00043835,120]
[355409204,1741113040794,-548.13,0.00043835,120]
[355409205,1741113040804,-500.0,0.00043835,120]
[355409206,1741113040817,-1000.0,0.00043835,88]
[355409207,1741113040827,-1258.02,0.00043835,120]
[355409208,1741113040838,-500.0,0.00043835,120]
[355409209,1741113040848,-268.78033815,0.00043835,120]
[355409210,1741113040858,-500.0,0.00043835,120]
[355409211,1741113040867,-500.0,0.00043835,120]
[355409212,1741113040877,-400.8690634,0.00043835,120]
[355409213,1741113040886,-1825.82,0.00043835,120]
[355409214,1741113040896,-503.73039072,0.00043835,120]
[355409215,1741113040906,-500.0,0.00043835,120]
[355409216,1741113040916,-1535.59,0.00043835,120]
[355409217,1741113040927,-31751.56,0.00043835,7]
[355409218,1741113040938,-2459.85,0.00043835,120]
[355409219,1741113040948,-500.0,0.00043835,120]
[355409220,1741113040958,-500.0,0.00043835,120]
[355409221,1741113040968,-534.90737846,0.00043835,120]
[355409222,1741113040978,-500.0,0.00043835,120]
[355409223,1741113040988,-500.0,0.00043835,120]
[355409224,1741113040998,-500.0,0.00043835,120]
[355409225,1741113041008,-500.0,0.00043835,120]
[355409226,1741113041018,-754.89,0.00043835,120]
[355409227,1741113041028,-500.0,0.00043835,120]
[355409228,1741113041040,-500.0,0.00043835,120]
[355409229,1741113041050,-500.0,0.00043835,120]
[355409230,1741113041062,-755.08,0.00043835,120]
[355409231,1741113041072,-347.41896602,0.00043835,120]
[355409232,1741113041082,-500.0,0.00043835,120]
[355409233,1741113041092,-500.0,0.00043835,120]
[355409234,1741113041102,-500.0,0.00043835,120]
[355409235,1741113041111,-500.0,0.00043835,120]
[355409236,1741113041121,-1141.05,0.00043835,30]
[355409237,1741113041131,-500.0,0.00043835,120]
[355409238,1741113041140,-500.0,0.00043835,120]
[355409239,1741113041150,-500.0,0.00043835,120]
[355409240,1741113041160,-485.48032567,0.00043835,120]
[355409241,1741113041170,-500.0,0.00043835,120]
[355409242,1741113041180,-500.0,0.00043835,120]
[355409243,1741113041190,-500.0,0.00043835,120]
[355409244,1741113041199,-500.0,0.00043835,120]
[355409245,1741113041209,-500.0,0.00043835,120]
[355409246,1741113041218,-500.0,0.00043835,120]
[355409247,1741113041228,-500.0,0.00043835,120]
[355409248,1741113041238,-500.0,0.00043835,30]
[355409249,1741113041248,-500.0,0.00043835,120]
[355409250,1741113041257,-500.0,0.00043835,120]
[355409251,1741113041267,-500.0,0.00043835,120]
[355409252,1741113041278,-500.0,0.00043835,120]
[355409253,1741113041288,-500.0,0.00043835,120]
[355409254,1741113041298,-500.0,0.00043835,120]
[355409255,1741113041308,-500.0,0.00043835,120]
[355409256,1741113041322,-500.0,0.00043835,120]
[355409257,1741113041332,-500.0,0.00043835,120]
[355409258,1741113041342,-500.0,0.00043835,120]
[355409259,1741113041351,-500.0,0.00043835,120]
[355409260,1741113041360,-500.0,0.00043835,120]
[355409261,1741113041370,-500.0,0.00043835,120]
[355409262,1741113041379,-500.0,0.00043873,10]
[355409263,1741113041388,-500.0,0.00043873,10]
[355409264,1741113041397,-500.0,0.00043873,10]
[355409265,1741113041406,-500.0,0.00043906,30]
[355409266,1741113041415,-999.0,0.00044054,120]
[355409267,1741113041424,-500.0,0.00044316,100]
[355409268,1741113041433,-1454.34530104,0.00044373,3]
[355409269,1741113041442,-151.0,0.00044383,120]
[355409270,1741113041452,-151.0,0.00044383,120]
[355409271,1741113041461,-151.0,0.00044383,2]
[355409272,1741113041471,-503.24,0.00044383,120]
[355409273,1741113041480,-151.0,0.00044383,120]
[355409274,1741113041492,-151.0,0.00044383,120]
[355409275,1741113041501,-500.0,0.00044383,120]
[355409276,1741113041510,-151.0,0.00044383,120]
[355409277,1741113041519,-500.0,0.00044383,120]
[355409278,1741113041529,-500.0,0.00044383,120]
[355409279,1741113041540,-500.0,0.00044383,120]
[355409280,1741113041549,-500.0,0.00044383,120]
[355409281,1741113041558,-504.2044642,0.00044383,120]
[355409282,1741113041568,-1901.98,0.00044383,120]
[355409283,1741113041579,-500.0,0.00044383,120]
[355409284,1741113041588,-500.0,0.00044383,120]
[355409285,1741113041598,-500.0,0.00044383,120]
[355409286,1741113041607,-500.0,0.00044383,120]
[355409287,1741113041617,-500.0,0.00044383,120]
[355409288,1741113041626,-500.0,0.00044383,120]
[355409289,1741113041635,-500.0,0.00044383,120]
[355409290,1741113041645,-151.0,0.00044383,120]
[355409291,1741113041655,-500.0,0.00044383,120]
[355409292,1741113041665,-500.0,0.00044383,120]
[355409293,1741113041675,-500.0,0.00044383,120]
[355409294,1741113041684,-500.0,0.00044383,120]
[355409295,1741113041694,-500.0,0.00044383,120]
[355409296,1741113041703,-500.0,0.00044383,120]
[355409297,1741113041713,-500.0,0.00044383,120]
[355409298,1741113041723,-853.85,0.00044383,120]
[355409299,1741113041733,-2331.66,0.00044383,120]
[355409300,1741113041743,-500.0,0.00044383,120]
[355409301,1741113041752,-500.0,0.00044383,120]
[355409302,1741113041761,-500.0,0.00044383,120]
[355409303,1741113041771,-1673.68,0.00044383,6]
[355409304,1741113041780,-500.0,0.00044383,120]
[355409305,1741113041789,-500.0,0.00044383,120]
[355409306,1741113041799,-201.43485285,0.00044383,120]
[355409307,1741113041809,-500.0,0.00044383,120]
[355409308,1741113041819,-500.0,0.00044383,120]
[355409309,1741113041828,-500.0,0.00044383,120]
[355409310,1741113041838,-899.93,0.00044383,120]
[355409311,1741113041848,-500.0,0.00044383,120]
[355409312,1741113041857,-955.17,0.00044383,120]
[355409313,1741113041867,-501.0,0.00044383,120]
[355409314,1741113041877,-500.0,0.00044383,120]
[355409315,1741113041887,-500.0,0.00044383,120]
[355409316,1741113041896,-500.0,0.00044383,120]
[355409317,1741113041905,-500.0,0.00044383,120]
[355409318,1741113041915,-500.0,0.00044383,120]
[355409319,1741113041925,-151.0,0.00044383,120]
[355409320,1741113041935,-500.0,0.00044383,120]
[355409321,1741113041944,-548.13,0.00044383,120]
[355409322,1741113041954,-1258.02,0.00044383,120]
[355409323,1741113041964,-500.0,0.00044383,120]
[355409324,1741113041973,-151.0,0.00044383,120]
[355409325,1741113041983,-1825.82,0.00044383,120]
[355409326,1741113041993,-1535.59,0.00044383,120]
[355409327,1741113042003,-31751.56,0.00044383,7]
[355409328,1741113042012,-2459.85,0.00044383,120]
[355409329,1741113042021,-290.90771132,0.00044383,120]
[355409330,1741113042030,-754.89,0.00044383,120]
[355409331,1741113042040,-500.0,0.00044383,120]
[355409332,1741113042049,-755.08,0.00044383,120]
[355409333,1741113042058,-500.0,0.00044383,120]
[355409334,1741113042070,-1141.05,0.00044383,30]
[355409335,1741113042080,-500.0,0.00044383,120]
[355409336,1741113042089,-500.0,0.00044383,120]
[355409337,1741113042099,-500.0,0.00044383,120]
[355409338,1741113042108,-270.84,0.00044383,120]
[355409339,1741113042118,-500.0,0.00044383,120]
[355409340,1741113042127,-500.0,0.00044383,120]
[355409341,1741113042137,-500.0,0.00044383,120]
[355409342,1741113042147,-500.0,0.00044383,120]
[355409343,1741113042156,-500.0,0.00044383,120]
[355409344,1741113042166,-313.4,0.000444,30]
[355409345,1741113042175,-7678.52,0.000444,30]
[355409346,1741113042185,-500.0,0.00044416,95]
[355409347,1741113042195,-500.0,0.00044516,94]
[355409348,1741113042205,-999.0,0.00044602,120]
[355409349,1741113042214,-500.0,0.00044616,100]
[355409350,1741113042224,-500.0,0.00044716,93]
[355409351,1741113042234,-2200.0,0.00044775,14]
[355409352,1741113042244,-500.0,0.00044816,98]
[355409354,1741113042253,-500.0,0.00044916,99]
[355409355,1741113042262,-727.17265052,0.00044921,3]
[355409356,1741113042272,-503.24,0.00044931,120]
[355409357,1741113042281,-500.0,0.00044931,120]
[355409358,1741113042291,-500.0,0.00044931,120]
[355409359,1741113042300,-500.0,0.00044931,120]
[355409360,1741113042310,-500.0,0.00044931,120]
[355409361,1741113042323,-1901.98,0.00044931,120]
[355409362,1741113042332,-500.0,0.00044931,120]
[355409363,1741113042342,-594.4,0.00044931,120]
[355409364,1741113042351,-500.0,0.00044931,120]
[355409365,1741113042361,-159.29,0.00044931,120]
[355409366,1741113042371,-585.90880634,0.00044931,120]
[355409367,1741113042380,-500.0,0.00044931,120]
[355409368,1741113042390,-500.0,0.00044931,120]
[355409369,1741113042399,-500.0,0.00044931,120]
[355409370,1741113042409,-500.0,0.00044931,120]
[355409371,1741113042418,-853.85,0.00044931,120]
[355409372,1741113042427,-2331.66,0.00044931,120]
[355409373,1741113042437,-500.0,0.00044931,120]
[355409374,1741113042446,-500.0,0.00044931,120]
[355409375,1741113042456,-1673.68,0.00044931,6]
[355409376,1741113042465,-500.0,0.00044931,120]
[355409377,1741113042475,-500.25457793,0.00044931,120]
[355409378,1741113042484,-500.0,0.00044931,120]
[355409379,1741113042495,-500.0,0.00044931,120]
[355409380,1741113042507,-899.93,0.00044931,120]
[355409381,1741113042516,-955.17,0.00044931,120]
[355409382,1741113042526,-501.0,0.00044931,120]
[355409383,1741113042535,-500.0,0.00044931,120]
[355409384,1741113042546,-548.13,0.00044931,120]
[355409385,1741113042555,-1258.02,0.00044931,120]
[355409386,1741113042567,-500.0,0.00044931,120]
[355409387,1741113042577,-1825.82,0.00044931,120]
[355409388,1741113042587,-1535.59,0.00044931,120]
[355409389,1741113042596,-31751.56,0.00044931,7]
[355409390,1741113042606,-2459.85,0.00044931,120]
[355409391,1741113042615,-754.89,0.00044931,120]
[355409392,1741113042625,-500.0,0.00044931,120]
[355409394,1741113042635,-755.08,0.00044931,120]
[355409395,1741113042645,-1141.05,0.00044931,30]
[355409396,1741113042654,-500.0,0.00044931,120]
[355409397,1741113042664,-500.0,0.00044931,120]
[355409398,1741113042674,-500.0,0.00044931,120]
[355409399,1741113042684,-500.0,0.00044931,120]
[355409400,1741113042694,-500.0,0.00044931,120]
[355409401,1741113042704,-500.0,0.00044931,120]
[355409402,1741113042713,-2571.71443449,0.00044956,2]
[355409403,1741113042723,-816.22,0.00045,2]
[355409405,1741113042732,-14514.01435554,0.00045,120]
[355409407,1741113042742,-176.920165,0.00045,60]
[355409409,1741113042752,-500.0,0.00045016,96]
[355409411,1741113042761,-500.0,0.00045116,95]
[355409415,1741113042771,-999.0,0.0004515,120]
[355409418,1741113042782,-447.88,0.000452,30]
[355409420,1741113042791,-500.0,0.00045216,96]
[355409423,1741113042800,-727.17265052,0.00045248,3]
[355409426,1741113042809,-1954.0,0.00045258,2]
[355409428,1741113042822,-539.0,0.00045258,2]
[355409433,1741113042832,-2276.0,0.00045258,2]
[355409436,1741113042843,-152.2,0.000453,30]
[355409438,1741113042854,-313.4,0.000453,30]
[355409441,1741113042864,-7678.52,0.000453,30]
[355409443,1741113042874,-500.0,0.00045316,90]
[355409445,1741113042884,-500.0,0.00045416,94]
[355409448,1741113042894,-727.17265052,0.00045469,3]
[355409451,1741113042904,-264.034561,0.00045479,120]
[355409453,1741113042913,-151.0,0.00045479,120]
[355409455,1741113042922,-151.0,0.00045479,2]
[355409457,1741113042932,-503.24,0.00045479,120]
[355409458,1741113042941,-151.0,0.00045479,120]
[355409460,1741113042951,-151.0,0.00045479,120]
[355409462,1741113042960,-500.0,0.00045479,120]
[355409463,1741113042969,-500.0,0.00045479,120]
[355409464,1741113042979,-500.0,0.00045479,120]
[355409465,1741113042988,-500.0,0.00045479,120]
[355409466,1741113042997,-1901.98,0.00045479,120]
[355409467,1741113043007,-500.0,0.00045479,120]
[355409468,1741113043016,-151.0,0.00045479,120]
[355409469,1741113043026,-500.0,0.00045479,120]
[355409470,1741113043035,-500.0,0.00045479,120]
[355409471,1741113043044,-853.85,0.00045479,120]
[355409472,1741113043054,-2331.66,0.00045479,120]
[355409473,1741113043065,-500.0,0.00045479,120]
[355409474,1741113043074,-500.0,0.00045479,120]
[355409475,1741113043083,-1673.68,0.00045479,6]
[355409476,1741113043093,-500.0,0.00045479,120]
[355409477,1741113043103,-500.0,0.00045479,120]
[355409478,1741113043112,-899.93,0.00045479,120]
[355409479,1741113043122,-955.17,0.00045479,120]
[355409480,1741113043131,-501.0,0.00045479,120]
[355409481,1741113043141,-500.0,0.00045479,120]
[355409482,1741113043151,-151.0,0.00045479,120]
[355409483,1741113043160,-548.13,0.00045479,120]
[355409484,1741113043169,-1258.02,0.00045479,120]
[355409485,1741113043179,-500.0,0.00045479,120]
[355409486,1741113043188,-1825.82,0.00045479,120]
[355409487,1741113043198,-1535.59,0.00045479,120]
[355409488,1741113043207,-2459.85,0.00045479,120]
[355409489,1741113043217,-31751.56,0.00045479,7]
[355409490,1741113043226,-754.89,0.00045479,120]
[355409491,1741113043236,-500.0,0.00045479,120]
[355409492,1741113043245,-755.08,0.00045479,120]
[355409493,1741113043255,-1141.05,0.00045479,30]
[355409494,1741113043264,-541.66,0.00045479,120]
[355409495,1741113043273,-500.0,0.00045479,120]
[355409496,1741113043283,-500.0,0.00045479,120]
[355409497,1741113043292,-500.0,0.00045479,120]
[355409498,1741113043301,-500.0,0.00045479,120]
[355409499,1741113043313,-500.0,0.00045479,120]
[355409500,1741113043322,-305.47,0.000455,30]
[355409501,1741113043331,-500.0,0.00045516,93]
[355409502,1741113043340,-500.0,0.00045616,98]
[355409503,1741113043349,-208.53,0.00045698,120]
[355409504,1741113043359,-500.0,0.00045716,100]
[355409505,1741113043368,-500.0,0.00045816,99]
[355409507,1741113043378,-500.0,0.00045916,98]
[355409509,1741113043388,-1000.0,0.00046,120]
[355409511,1741113043398,-4500.0,0.00046,120]
[355409513,1741113043407,-500.0,0.00046016,98]
[355409515,1741113043417,-727.17265052,0.00046017,4]
[355409517,1741113043426,-503.24,0.00046027,120]
[355409519,1741113043436,-500.0,0.00046027,120]
[355409521,1741113043445,-500.0,0.00046027,120]
[355409523,1741113043455,-500.0,0.00046027,120]
[355409525,1741113043464,-1901.98,0.00046027,120]
[355409527,1741113043474,-500.0,0.00046027,120]
[355409529,1741113043483,-500.0,0.00046027,120]
[355409531,1741113043493,-500.0,0.00046027,120]
[355409533,1741113043504,-853.85,0.00046027,120]
[355409535,1741113043514,-2331.66,0.00046027,120]
[355409537,1741113043523,-500.0,0.00046027,120]
[355409539,1741113043533,-500.0,0.00046027,120]
[355409541,1741113043544,-1673.68,0.00046027,6]
[355409543,1741113043553,-500.0,0.00046027,120]
[355409544,1741113043565,-500.0,0.00046027,120]
[355409545,1741113043576,-899.93,0.00046027,120]
[355409546,1741113043588,-955.17,0.00046027,120]
[355409547,1741113043598,-501.0,0.00046027,120]
[355409548,1741113043608,-500.0,0.00046027,120]
[355409549,1741113043617,-548.13,0.00046027,120]
[355409550,1741113043627,-1258.02,0.00046027,120]
[355409551,1741113043636,-500.0,0.00046027,120]
[355409552,1741113043652,-1825.82,0.00046027,120]
[355409553,1741113043662,-1535.59,0.00046027,120]
[355409554,1741113043672,-2459.85,0.00046027,120]
[355409555,1741113043683,-31751.56,0.00046027,7]
[355409556,1741113043692,-754.89,0.00046027,120]
[355409557,1741113043703,-500.0,0.00046027,120]
[355409558,1741113043713,-755.08,0.00046027,120]
[355409559,1741113043723,-1141.05,0.00046027,30]
[355409560,1741113043733,-500.0,0.00046027,120]
[355409561,1741113043743,-500.0,0.00046027,120]
[355409562,1741113043753,-500.0,0.00046027,120]
[355409563,1741113043763,-500.0,0.00046027,120]
[355409564,1741113043773,-500.0,0.00046027,120]
[355409565,1741113043782,-727.17265052,0.0004603,4]
[355409566,1741113043793,-7633.74656699,0.0004604,120]
[355409567,1741113043802,-450.1021302,0.00046116,4]
[355409568,1741113043814,-500.0,0.00046116,95]
[355409569,1741113043824,-313.4,0.000462,30]
[355409570,1741113043834,-7678.52,0.000462,30]
[355409571,1741113043843,-500.0,0.00046216,98]
[355409572,1741113043853,-500.0,0.00046316,91]
[355409573,1741113043863,-500.0,0.00046416,91]
[355409574,1741113043994,-500.0,0.00046516,95]
[355409575,1741113044005,-500.0,0.00046532,2]
[355409576,1741113044015,-727.17265052,0.00046565,4]
[355409577,1741113044025,-151.0,0.00046575,120]
[355409578,1741113044035,-151.0,0.00046575,2]
[355409579,1741113044045,-503.24,0.00046575,120]
[355409580,1741113044055,-151.0,0.00046575,120]
[355409581,1741113044067,-500.0,0.00046575,120]
[355409582,1741113044077,-500.0,0.00046575,120]
[355409583,1741113044086,-500.0,0.00046575,120]
[355409584,1741113044096,-1901.98,0.00046575,120]
[355409585,1741113044106,-500.0,0.00046575,120]
[355409586,1741113044116,-151.0,0.00046575,120]
[355409587,1741113044126,-500.0,0.00046575,120]
[355409588,1741113044137,-500.0,0.00046575,120]
[355409589,1741113044147,-853.85,0.00046575,120]
[355409590,1741113044157,-2331.66,0.00046575,120]
[355409591,1741113044167,-500.0,0.00046575,120]
[355409592,1741113044176,-500.0,0.00046575,120]
[355409593,1741113044186,-1673.68,0.00046575,6]
[355409594,1741113044196,-500.0,0.00046575,120]
[355409595,1741113044206,-500.0,0.00046575,120]
[355409596,1741113044216,-899.93,0.00046575,120]
[355409597,1741113044225,-955.17,0.00046575,120]
[355409598,1741113044235,-501.0,0.00046575,120]
[355409599,1741113044245,-500.0,0.00046575,120]
[355409600,1741113044255,-548.13,0.00046575,120]
[355409601,1741113044265,-1258.02,0.00046575,120]
[355409602,1741113044274,-500.0,0.00046575,120]
[355409603,1741113044284,-151.0,0.00046575,120]
[355409604,1741113044293,-1825.82,0.00046575,120]
[355409605,1741113044303,-1535.59,0.00046575,120]
[355409606,1741113044315,-2459.85,0.00046575,120]
[355409608,1741113044324,-31751.56,0.00046575,7]
[355409609,1741113044334,-754.89,0.00046575,120]
[355409611,1741113044344,-500.0,0.00046575,120]
[355409613,1741113044353,-755.08,0.00046575,120]
[355409614,1741113044363,-1141.05,0.00046575,30]
[355409615,1741113044372,-500.0,0.00046575,120]
[355409616,1741113044382,-500.0,0.00046575,120]
[355409617,1741113044391,-500.0,0.00046575,120]
[355409618,1741113044400,-500.0,0.00046575,120]
[355409619,1741113044410,-500.0,0.00046575,120]
[355409620,1741113044420,-22780.69068597,0.00046587,30]
[355409621,1741113044429,-500.0,0.00046616,92]
[355409622,1741113044439,-500.0,0.00046716,94]
[355409623,1741113044449,-151.0,0.000468,120]
[355409624,1741113044458,-151.0,0.000468,2]
[355409625,1741113044467,-171.384019,0.000468,120]
[355409626,1741113044477,-151.0,0.000468,120]
[355409627,1741113044488,-151.0,0.000468,120]
[355409628,1741113044500,-151.0,0.000468,120]
[355409629,1741113044512,-500.0,0.00046816,98]
[355409630,1741113044522,-447.88,0.000469,30]
[355409631,1741113044531,-1000.0,0.000469,52]
[355409632,1741113044541,-500.0,0.00046916,94]
[355409633,1741113044551,-500.0,0.0004695,17]
[355409634,1741113044560,-500.0,0.0004695,17]